lending/lending_fUSD_20240621
["ID","MTS","AMOUNT","RATE_DAILY","PERIOD"]
[330037769,1718956744822,-500.0,0.00043835,120]
[330037770,1718956744856,-985.84,0.00043835,120]
[330037771,1718956744893,-250.0,0.00043835,120]
[330037772,1718956744927,-500.0,0.00043835,120]
[330037773,1718956744960,-1888.63,0.00043835,120]
[330037774,1718956744993,-710.95,0.00043835,120]
[330037775,1718956745025,-500.0,0.00043835,120]
[330037776,1718956745057,-707.0,0.00043835,120]
[330037777,1718956745088,-3042.3,0.00043835,120]
[330037778,1718956745124,-500.0,0.00043835,120]
[330037779,1718956745156,-725.5,0.00043835,120]
[330037780,1718956745188,-967.38,0.00043835,120]
[330037781,1718956745222,-781.3,0.00043835,120]
[330037782,1718956745255,-500.0,0.00043835,120]
[330037783,1718956745288,-626.45,0.00043835,120]
[330037784,1718956745322,-572.6,0.00043835,120]
[330037785,1718956745355,-1748.28,0.00043835,120]
[330037786,1718956745387,-500.0,0.00043835,120]
[330037787,1718956745420,-500.0,0.00043835,120]
[330037788,1718956745453,-931.79,0.00043835,120]
[330037789,1718956745491,-588.12229123,0.00043835,120]
[330037790,1718956745530,-866.81,0.00043835,120]
[330037791,1718956745569,-1315.17,0.00043835,120]
[330037792,1718956745608,-520.05,0.00043835,120]
[330037793,1718956745654,-1759.65,0.00043835,120]
[330037794,1718956745694,-500.0,0.00043835,120]
[330037795,1718956745733,-864.34,0.00043835,120]
[330037796,1718956745770,-500.0,0.00043835,120]
[330037797,1718956745807,-1968.37,0.00043835,120]
[330037798,1718956745844,-572.29,0.00043835,120]
[330037799,1718956745886,-1120.37,0.00043835,120]
[330037800,1718956745926,-514.17,0.00043835,120]
[330037801,1718956745962,-500.0,0.00043835,120]
[330037802,1718956745997,-705.81,0.00043835,120]
[330037803,1718956746033,-500.0,0.00043835,120]
[330037804,1718956746070,-500.0,0.00043835,120]
[330037805,1718956746106,-500.0,0.00043835,120]
[330037806,1718956746143,-1558.75,0.00043835,120]
[330037807,1718956746178,-625.32,0.00043835,120]
[330037808,1718956746212,-500.0,0.00043835,120]
[330037809,1718956746248,-3050.92,0.00043835,120]
[330037810,1718956746286,-1747.68,0.00043835,120]
[330037811,1718956746319,-601.76449633,0.00043835,120]
[330037812,1718956746360,-385.46256535,0.00043835,120]
[330037813,1718956746396,-2360.82,0.00043835,120]
[330037814,1718956746432,-500.0,0.00043835,120]
[330037815,1718956746468,-500.0,0.00043835,120]
[330037816,1718956746503,-1620.74,0.00043835,120]
[330037817,1718956746539,-500.0,0.00043835,120]
[330037818,1718956746575,-2733.95,0.00043835,120]
[330037819,1718956746611,-500.0,0.00043835,120]
[330037820,1718956746660,-770.73,0.00043835,120]
[330037821,1718956746695,-500.0,0.00043835,120]
[330037822,1718956746729,-1051.1,0.00043835,120]
[330037823,1718956746765,-500.0,0.00043835,120]
[330037824,1718956746800,-500.0,0.00043835,120]
[330037825,1718956746835,-500.0,0.00043835,120]
[330037826,1718956746871,-970.33,0.00043835,120]
[330037827,1718956746910,-617.18,0.00043835,120]
[330037828,1718956746944,-500.0,0.00043835,120]
[330037829,1718956746984,-1588.68,0.00043835,120]
[330037830,1718956747020,-1509.47,0.00043835,120]
[330037831,1718956747057,-500.0,0.00043835,120]
[330037832,1718956747093,-500.0,0.00043835,120]
[330037833,1718956747126,-664.31,0.00043835,120]
[330037834,1718956747180,-500.0,0.00043835,120]
[330037835,1718956747525,-688.95,0.00043835,120]
[330037836,1718956747563,-500.0,0.00043835,120]
[330037837,1718956747599,-1441.36,0.00043835,120]
[330037838,1718956747650,-1460.58,0.00043835,120]
[330037839,1718956747685,-500.0,0.00043835,120]
[330037840,1718956747720,-1346.01,0.00043835,120]
[330037841,1718956747754,-594.86465877,0.00043835,120]
[330037842,1718956747787,-500.0,0.00043835,120]
[330037843,1718956747821,-500.0,0.00043835,120]
[330037844,1718956747858,-500.0,0.00043835,120]
[330037845,1718956747896,-500.0,0.00043835,120]
[330037846,1718956747936,-500.0,0.00043835,120]
[330037847,1718956747972,-525.69,0.00043835,120]
[330037848,1718956748009,-2111.76,0.00043835,120]
[330037849,1718956748045,-726.65,0.00043835,120]
[330037850,1718956748080,-839.74,0.00043835,120]
[330037851,1718956748114,-500.0,0.00043835,120]
[330037852,1718956748156,-1296.32,0.00043835,120]
[330037853,1718956748190,-2023.83,0.00043835,120]
[330037854,1718956748224,-964.89,0.00043835,120]
[330037855,1718956748258,-500.0,0.00043835,120]
[330037856,1718956748291,-500.0,0.00043835,120]
[330037857,1718956748324,-500.0,0.00043835,120]
[330037858,1718956748358,-558.32,0.00043835,120]
[330037859,1718956748392,-692.7,0.00043835,120]
[330037860,1718956748424,-623.4593476,0.00043835,120]
[330037861,1718956748457,-1466.59,0.00043835,120]
[330037862,1718956748490,-995.34,0.00043835,120]
[330037863,1718956748524,-1769.9,0.00043835,120]
[330037864,1718956748557,-500.0,0.00043835,120]
[330037865,1718956748590,-1640.68,0.00043835,120]
[330037866,1718956748623,-500.0,0.00043835,120]
[330037867,1718956748670,-500.0,0.00043835,120]
[330037868,1718956748704,-500.0,0.00043835,120]
[330037869,1718956748739,-2592.71,0.00043835,120]
[330037870,1718956748773,-523.15,0.00043835,120]
[330037871,1718956748806,-557.96,0.00043835,120]
[330037872,1718956748838,-1316.85,0.00043835,120]
[330037873,1718956748870,-500.0,0.00043835,120]
[330037874,1718956748913,-1287.84,0.00043835,120]
[330037875,1718956748948,-2058.4,0.00043835,120]
[330037876,1718956748984,-500.0,0.00043835,120]
[330037877,1718956749017,-689.75,0.00043835,120]
[330037878,1718956749050,-500.0,0.00043835,120]
[330037879,1718956749082,-500.0,0.00043835,120]
[330037880,1718956749116,-682.56,0.00043835,120]
[330037881,1718956749149,-1435.98,0.00043835,120]
[330037882,1718956749183,-1044.29,0.00043835,120]
[330037883,1718956749214,-1609.7,0.00043835,120]
[330037884,1718956749246,-1129.79,0.00043835,120]
[330037885,1718956749278,-500.0,0.00043835,120]
[330037886,1718956749309,-1100.01,0.00043835,120]
[330037887,1718956749342,-657.7,0.00043835,120]
[330037888,1718956749373,-1090.44,0.00043835,120]
[330037889,1718956749409,-548.63,0.00043835,120]
[330037890,1718956749442,-723.87,0.00043835,120]
[330037891,1718956749473,-500.0,0.00043835,120]
[330037892,1718956749505,-1418.84,0.00043835,120]
[330037893,1718956749537,-500.0,0.00043835,120]
[330037894,1718956749574,-500.0,0.00043835,120]
[330037895,1718956749605,-964.53,0.00043835,120]
[330037896,1718956749639,-925.44,0.00043835,120]
[330037897,1718956749669,-1219.64,0.00043835,120]
[330037898,1718956749701,-503.07,0.00043835,120]
[330037899,1718956749732,-935.33,0.00043835,120]
[330037900,1718956749761,-519.15,0.00043835,120]
[330037901,1718956749792,-500.0,0.00043835,120]
[330037902,1718956749822,-2270.49,0.00043835,120]
[330037903,1718956749852,-500.0,0.00043835,120]
[330037904,1718956749886,-500.0,0.00043835,120]
[330037905,1718956749918,-870.03,0.00043835,120]
[330037906,1718956749951,-548.39,0.00043835,120]
[330037907,1718956750044,-500.0,0.00043835,120]
[330037908,1718956750075,-771.08,0.00043835,120]
[330037909,1718956750105,-500.0,0.00043835,120]
[330037910,1718956750136,-500.0,0.00043835,120]
[330037911,1718956750172,-500.0,0.00043835,120]
[330037912,1718956750215,-500.0,0.00043835,120]
[330037913,1718956750252,-526.54,0.00043835,120]
[330037914,1718956750291,-500.0,0.00043835,120]
[330037915,1718956750329,-500.0,0.00043835,120]
[330037916,1718956750366,-1852.58,0.00043835,120]
[330037917,1718956750402,-981.43,0.00043835,120]
[330037918,1718956750438,-803.22,0.00043835,120]
[330037919,1718956750474,-670.74,0.00043835,120]
[330037920,1718956750509,-500.0,0.00043835,120]
[330037921,1718956750544,-2094.09,0.00043835,120]
[330037922,1718956750581,-2411.64,0.00043835,120]
[330037923,1718956750618,-625.32,0.00043835,120]
[330037924,1718956750658,-787.77,0.00043835,120]
[330037925,1718956750693,-1266.16,0.00043835,120]
[330037926,1718956750727,-500.0,0.00043835,120]
[330037927,1718956750760,-500.0,0.00043835,120]
[330037928,1718956750794,-2772.43,0.00043835,120]
[330037929,1718956750834,-500.0,0.00043835,120]
[330037930,1718956750870,-500.0,0.00043835,120]
[330037931,1718956750909,-1109.59,0.00043835,120]
[330037932,1718956750950,-1313.17,0.00043835,120]
[330037933,1718956750992,-500.0,0.00043835,120]
[330037934,1718956751033,-500.0,0.00043835,120]
[330037935,1718956751073,-523.74,0.00043835,120]
[330037936,1718956751112,-521.03,0.00043835,120]
[330037937,1718956751154,-500.0,0.00043835,120]
[330037938,1718956751195,-500.0,0.00043835,120]
[330037939,1718956751237,-851.12,0.00043835,120]
[330037940,1718956751279,-716.39,0.00043835,120]
[330037941,1718956751319,-636.83866538,0.00043835,120]
[330037942,1718956751358,-704.67,0.00043835,120]
[330037943,1718956751398,-500.0,0.00043835,120]
[330037944,1718956751433,-500.0,0.00043835,120]
[330037945,1718956751473,-342.58470552,0.00043835,120]
[330037946,1718956751511,-565.47,0.00043835,120]
[330037947,1718956751546,-500.0,0.00043835,120]
[330037948,1718956751579,-650.36,0.00043835,120]
[330037949,1718956751614,-500.0,0.00043835,120]
[330037950,1718956751649,-1835.83,0.00043835,120]
[330037951,1718956751683,-500.0,0.00043835,120]
[330037952,1718956751717,-1258.37,0.00043835,120]
[330037953,1718956751750,-500.0,0.00043835,120]
[330037954,1718956751785,-3398.89,0.00043835,120]
[330037955,1718956751821,-596.32,0.00043835,120]
[330037956,1718956751860,-755.86,0.00043835,120]
[330037957,1718956751900,-711.69,0.00043835,120]
[330037958,1718956751938,-500.0,0.00043835,120]
[330037959,1718956751976,-500.0,0.00043835,120]
[330037960,1718956752013,-500.75,0.00043835,120]
[330037961,1718956752049,-500.0,0.00043835,120]
[330037962,1718956752085,-443.68887671,0.00043835,120]
[330037963,1718956752120,-500.0,0.00043835,120]
[330037964,1718956752156,-500.29,0.00043835,120]
[330037965,1718956752191,-5938.09,0.00043835,120]
[330037966,1718956752227,-1989.29,0.00043835,120]
[330037967,1718956752264,-772.45,0.00043835,120]
[330037968,1718956752303,-580.69,0.00043835,120]
[330037969,1718956752340,-500.0,0.00043835,120]
[330037970,1718956752376,-500.0,0.00043835,120]
[330037971,1718956752422,-796.56,0.00043835,120]
[330037972,1718956752457,-569.37,0.00043835,120]
[330037973,1718956752494,-1290.44,0.00043835,120]
[330037974,1718956752530,-500.0,0.00043835,120]
[330037975,1718956752568,-500.0,0.00043835,120]
[330037976,1718956752604,-500.0,0.00043835,120]
[330037977,1718956752650,-19890.01,0.00043835,120]
[330037978,1718956752684,-246.62938777,0.00043835,120]
[330037979,1718956752721,-1802.42,0.00043835,120]
[330037980,1718956752759,-1199.39,0.00043835,120]
[330037981,1718956752800,-529.86959209,0.00043835,120]
[330037982,1718956752839,-1095.41,0.00043835,120]
[330037983,1718956752877,-500.0,0.00043835,120]
[330037984,1718956752929,-909.98,0.00043835,120]
[330037985,1718956752965,-500.0,0.00043835,120]
[330037986,1718956753001,-726.97,0.00043835,120]
[330037987,1718956753041,-388.83641249,0.00043835,120]
[330037988,1718956753078,-1482.72,0.00043835,120]
[330037989,1718956753113,-500.0,0.00043835,120]
[330037990,1718956753150,-1088.54,0.00043835,120]
[330037991,1718956753185,-562.90306503,0.00043835,120]
[330037992,1718956753222,-1792.94,0.00043835,120]
[330037993,1718956753261,-500.0,0.00043835,120]
[330037994,1718956753297,-500.0,0.00043835,120]
[330037995,1718956753335,-567.41,0.00043835,120]
[330037996,1718956753375,-500.0,0.00043835,120]
[330037997,1718956753418,-500.0,0.00043835,120]
[330037998,1718956753458,-500.0,0.00043835,120]
[330037999,1718956753497,-875.06,0.00043835,120]
[330038000,1718956753536,-9972.12,0.00043835,120]
[330038001,1718956753572,-500.0,0.00043835,120]
[330038002,1718956753607,-500.0,0.00043835,120]
[330038003,1718956753646,-500.0,0.00043835,120]
[330038004,1718956753681,-950.18,0.00043835,120]
[330038005,1718956753716,-500.0,0.00043835,120]
[330038006,1718956753748,-500.0,0.00043835,120]
[330038007,1718956753782,-521.14,0.00043835,120]
[330038008,1718956753813,-500.0,0.00043835,120]
[330038009,1718956753844,-500.0,0.00043835,120]
[330038010,1718956753878,-500.0,0.00043835,120]
[330038011,1718956753914,-500.0,0.00043835,120]
[330038012,1718956754066,-500.0,0.00043835,120]
[330038013,1718956754100,-500.0,0.00043835,120]
[330038014,1718956754139,-641.38,0.00043835,120]
[330038015,1718956754172,-1935.68,0.00043835,120]
[330038016,1718956754208,-500.0,0.00043835,120]
[330038017,1718956754245,-500.0,0.00043835,120]
[330038018,1718956754282,-2334.13,0.00043835,120]
[330038019,1718956754319,-4482.79,0.00043835,120]
[330038020,1718956754355,-500.0,0.00043835,120]
[330038021,1718956754395,-2197.87,0.00043835,120]
[330038022,1718956754429,-4122.53,0.00043835,120]
[330038023,1718956754463,-500.0,0.00043835,120]
[330038024,1718956754496,-794.1,0.00043835,120]
[330038025,1718956754528,-635.64,0.00043835,120]
[330038026,1718956754562,-772.81,0.00043835,120]
[330038027,1718956754594,-234.55127171,0.00043835,120]
[330038028,1718956754627,-500.0,0.00043835,120]
[330038029,1718956754669,-1348.31,0.00043835,120]
[330038030,1718956754702,-500.0,0.00043835,120]
[330038031,1718956754736,-2781.32,0.00043835,120]
[330038032,1718956754769,-500.0,0.00043835,120]
[330038033,1718956754801,-504.37,0.00043835,120]
[330038034,1718956754835,-8234.15,0.00043835,120]
[330038035,1718956754866,-2391.95,0.00043835,90]
[330038036,1718956754901,-500.0,0.00043835,120]
[330038037,1718956754935,-6937.24,0.00043835,120]
[330038038,1718956754972,-49917.86,0.00043835,120]
[330038039,1718956755008,-17491.67,0.00043835,120]
[330038040,1718956755045,-2777.17,0.00043835,120]
[330038041,1718956755080,-500.0,0.00043835,120]
[330038042,1718956755115,-783.62,0.00043835,120]
[330038043,1718956755150,-500.0,0.00043835,120]
[330038044,1718956755184,-500.0,0.00043835,120]
[330038045,1718956755219,-500.0,0.00043835,120]
[330038046,1718956755256,-4818.53,0.00043835,120]
[330038047,1718956755291,-8438.67,0.00043835,120]
[330038048,1718956755326,-43739.07,0.00043835,120]
[330038049,1718956755363,-836.33,0.00043835,120]
[330038050,1718956755401,-500.0,0.00043835,120]
[330038051,1718956755436,-2903.94,0.00043835,120]
[330038052,1718956755471,-1204.23,0.00043835,120]
[330038053,1718956755507,-500.0,0.00043835,120]
[330038054,1718956755545,-2526.12,0.00043835,120]
[330038055,1718956755581,-500.0,0.00043835,120]
[330038056,1718956755616,-1622.38,0.00043835,120]
[330038057,1718956755650,-500.0,0.00043835,120]
[330038058,1718956755684,-1431.41,0.00043835,120]
[330038059,1718956755718,-3830.5,0.00043835,120]
[330038060,1718956755751,-507.85574123,0.00043835,120]
[330038061,1718956755785,-1229.3,0.00043835,120]
[330038062,1718956755819,-500.0,0.00043835,120]
[330038063,1718956755853,-2329.91,0.00043835,120]
[330038064,1718956755892,-1196.69,0.00043835,120]
[330038065,1718956755931,-601.28,0.00043835,120]
[330038066,1718956755966,-859.04,0.00043835,120]
[330038067,1718956756001,-1891.84,0.00043835,120]
[330038068,1718956756035,-1487.44,0.00043836,60]
[330038069,1718956756070,-2023.71809543,0.000439,120]
[330038070,1718956756105,-150.0,0.00043948,120]
[330038071,1718956756141,-3279.1,0.00043951,99]
[330038072,1718956756174,-1000.0,0.00043999,120]
[330038073,1718956756208,-168430.05738589,0.00044,45]
[330038074,1718956756242,-214.65377569,0.00044,60]
[330038075,1718956756274,-1000.0,0.00044,120]
[330038076,1718956756307,-2500.0,0.00044,120]
[330038077,1718956756342,-679.117975,0.00044,57]
[330038078,1718956756377,-150.0,0.0004401,120]
[330038079,1718956756414,-500.0,0.00044109,120]
[330038080,1718956756452,-612.03,0.00044109,120]
[330038081,1718956756488,-500.0,0.00044109,120]
[330038082,1718956756524,-500.0,0.00044109,120]
[330038083,1718956756560,-627.34,0.00044109,120]
[330038084,1718956756596,-587.05,0.00044109,120]
[330038085,1718956756632,-500.0,0.00044109,120]
[330038086,1718956756669,-500.0,0.00044109,120]
[330038087,1718956756704,-500.0,0.00044109,120]
[330038088,1718956756739,-1146.89,0.00044109,120]
[330038089,1718956756773,-500.0,0.00044109,120]
[330038090,1718956756807,-500.0,0.00044109,120]
[330038091,1718956756841,-1059.37,0.00044109,120]
[330038092,1718956756876,-699.11,0.00044109,120]
[330038093,1718956756918,-500.0,0.00044109,120]
[330038094,1718956756959,-629.80205907,0.00044109,120]
[330038095,1718956756997,-811.24,0.00044109,120]
[330038096,1718956757032,-946.4,0.00044109,120]
[330038097,1718956757069,-502.76,0.00044109,120]
[330038098,1718956757105,-554.1,0.00044109,120]
[330038099,1718956757144,-709.95,0.00044109,120]
[330038100,1718956757180,-1217.96,0.00044109,120]
[330038101,1718956757215,-500.0,0.00044109,120]
[330038102,1718956757554,-500.0,0.00044109,120]
[330038103,1718956757590,-500.0,0.00044109,120]
[330038104,1718956757624,-500.0,0.00044109,120]
[330038105,1718956757666,-500.0,0.00044109,120]
[330038106,1718956757699,-500.0,0.00044109,120]
[330038107,1718956757733,-619.67,0.00044109,120]
[330038108,1718956757771,-564.1,0.00044109,120]
[330038109,1718956757806,-868.95,0.00044109,120]
[330038110,1718956757840,-500.0,0.00044109,120]
[330038111,1718956757874,-524.61336329,0.00044109,120]
[330038112,1718956757909,-500.0,0.00044109,120]
[330038113,1718956757948,-500.0,0.00044109,120]
[330038114,1718956757982,-683.29,0.00044109,120]
[330038115,1718956758017,-500.0,0.00044109,120]
[330038116,1718956758054,-627.84,0.00044109,120]
[330038117,1718956758088,-500.0,0.00044109,120]
[330038118,1718956758122,-500.0,0.00044109,120]
[330038119,1718956758160,-500.0,0.00044109,120]
[330038120,1718956758194,-500.0,0.00044109,120]
[330038121,1718956758232,-571.22170427,0.00044109,120]
[330038122,1718956758267,-511.82,0.00044109,120]
[330038123,1718956758302,-867.89,0.00044109,120]
[330038124,1718956758336,-506.27,0.00044109,120]
[330038125,1718956758374,-500.0,0.00044109,120]
[330038126,1718956758412,-500.0,0.00044109,120]
[330038127,1718956758449,-854.92,0.00044109,120]
[330038128,1718956758486,-500.0,0.00044109,120]
[330038129,1718956758528,-500.0,0.00044109,120]
[330038130,1718956758568,-586.31,0.00044109,120]
[330038131,1718956758605,-685.69,0.00044109,120]
[330038132,1718956758644,-500.0,0.00044109,120]
[330038133,1718956758679,-748.3,0.00044109,120]
[330038134,1718956758716,-794.68,0.00044109,120]
[330038135,1718956758751,-500.0,0.00044109,120]
[330038136,1718956758786,-500.0,0.00044109,120]
[330038137,1718956758822,-500.0,0.00044109,120]
[330038138,1718956758858,-532.7,0.00044109,120]
[330038139,1718956758896,-725.95,0.00044109,120]
[330038140,1718956758931,-617.01,0.00044109,120]
[330038141,1718956758968,-500.0,0.00044109,120]
[330038142,1718956759001,-820.21,0.00044109,120]
[330038143,1718956759037,-937.52,0.00044109,120]
[330038144,1718956759071,-719.64,0.00044109,120]
[330038145,1718956759105,-506.86,0.00044109,120]
[330038146,1718956759140,-500.0,0.00044109,120]
[330038147,1718956759175,-460.20026839,0.00044109,120]
[330038148,1718956759209,-217.0522574,0.00044109,120]
[330038149,1718956759244,-839.9,0.00044109,120]
[330038150,1718956759278,-1103.6,0.00044109,120]
[330038151,1718956759314,-500.0,0.00044109,120]
[330038152,1718956759352,-530.78,0.00044109,120]
[330038153,1718956759385,-500.0,0.00044109,120]
[330038154,1718956759421,-604.54,0.00044109,120]
[330038155,1718956759456,-697.14,0.00044109,120]
[330038156,1718956759491,-500.0,0.00044109,120]
[330038157,1718956759530,-500.0,0.00044109,120]
[330038158,1718956759564,-841.77,0.00044109,120]
[330038159,1718956759599,-500.0,0.00044109,120]
[330038160,1718956759632,-500.0,0.00044109,120]
[330038161,1718956759674,-520.78,0.00044109,120]
[330038162,1718956759707,-525.07,0.00044109,120]
[330038163,1718956759740,-500.0,0.00044109,120]
[330038164,1718956759775,-577.78606428,0.00044109,120]
[330038165,1718956759809,-500.0,0.00044109,120]
[330038166,1718956759844,-500.0,0.00044109,120]
[330038167,1718956759878,-500.0,0.00044109,120]
[330038168,1718956759919,-577.24,0.00044109,120]
[330038169,1718956759955,-500.0,0.00044109,120]
[330038170,1718956759992,-869.8,0.00044109,120]
[330038171,1718956760027,-167.09600627,0.00044109,120]
[330038172,1718956760059,-1432.67,0.00044109,120]
[330038173,1718956760090,-500.0,0.00044109,120]
[330038174,1718956760184,-500.0,0.00044109,120]
[330038175,1718956760218,-227.70920751,0.00044109,120]
[330038176,1718956760249,-500.0,0.00044109,120]
[330038177,1718956760282,-500.0,0.00044109,120]
[330038178,1718956760318,-853.86,0.00044109,120]
[330038179,1718956760354,-560.61,0.00044109,120]
[330038180,1718956760392,-500.0,0.00044109,120]
[330038181,1718956760427,-820.38,0.00044109,120]
[330038182,1718956760467,-803.6,0.00044109,120]
[330038183,1718956760501,-652.24,0.00044109,120]
[330038184,1718956760536,-561.06,0.00044109,120]
[330038185,1718956760572,-714.43,0.00044109,120]
[330038186,1718956760606,-592.38,0.00044109,120]
[330038187,1718956760648,-500.0,0.00044109,120]
[330038188,1718956760682,-511.62,0.00044109,120]
[330038189,1718956760715,-597.98,0.00044109,120]
[330038190,1718956760751,-977.06,0.00044109,120]
[330038191,1718956760784,-745.53,0.00044109,120]
[330038192,1718956760817,-525.02,0.00044109,120]
[330038193,1718956760850,-500.0,0.00044109,120]
[330038194,1718956760889,-500.0,0.00044109,120]
[330038195,1718956760929,-500.0,0.00044109,120]
[330038196,1718956760963,-533.66,0.00044109,120]
[330038197,1718956760995,-1515.35,0.00044109,120]
[330038198,1718956761031,-760.35,0.00044109,120]
[330038199,1718956761070,-614.66,0.00044109,120]
[330038200,1718956761111,-500.0,0.00044109,120]
[330038201,1718956761154,-500.0,0.00044109,120]
[330038202,1718956761193,-500.0,0.00044109,120]
[330038203,1718956761230,-734.54,0.00044109,120]
[330038204,1718956761262,-500.0,0.00044109,120]
[330038205,1718956761298,-748.46,0.00044109,120]
[330038206,1718956761331,-612.85,0.00044109,120]
[330038207,1718956761366,-531.03,0.00044109,120]
[330038208,1718956761399,-500.0,0.00044109,120]
[330038209,1718956761431,-500.0,0.00044109,120]
[330038210,1718956761465,-500.0,0.00044109,120]
[330038211,1718956761500,-500.0,0.00044109,120]
[330038212,1718956761535,-735.27,0.00044109,120]
[330038213,1718956761569,-500.0,0.00044109,120]
[330038214,1718956761602,-500.0,0.00044109,120]
[330038215,1718956761639,-500.0,0.00044109,120]
[330038216,1718956761680,-500.0,0.00044109,120]
[330038217,1718956761716,-500.0,0.00044109,120]
[330038218,1718956761750,-150.04478936,0.00044109,120]
[330038219,1718956761785,-500.0,0.00044109,120]
[330038220,1718956761819,-2862.11,0.00044109,120]
[330038221,1718956761855,-500.0,0.00044109,120]
[330038222,1718956761897,-500.0,0.00044109,120]
[330038223,1718956761932,-500.0,0.00044109,120]
[330038224,1718956761966,-500.0,0.00044109,120]
[330038225,1718956761999,-500.0,0.00044109,120]
[330038226,1718956762032,-557.27,0.00044109,120]
[330038227,1718956762065,-704.0,0.00044109,120]
[330038228,1718956762098,-649.31,0.00044109,120]
[330038229,1718956762132,-500.0,0.00044109,120]
[330038230,1718956762166,-521.07,0.00044109,120]
[330038231,1718956762200,-654.5,0.00044109,120]
[330038232,1718956762234,-623.67,0.00044109,120]
[330038233,1718956762269,-824.84,0.00044109,120]
[330038234,1718956762303,-1136.63,0.00044109,120]
[330038235,1718956762337,-500.0,0.00044109,120]
[330038236,1718956762373,-500.0,0.00044109,120]
[330038237,1718956762409,-500.0,0.00044109,120]
[330038238,1718956762444,-576.54,0.00044109,120]
[330038239,1718956762479,-1053.39,0.00044109,120]
[330038240,1718956762513,-694.25,0.00044109,120]
[330038241,1718956762547,-500.0,0.00044109,120]
[330038242,1718956762579,-500.0,0.00044109,120]
[330038243,1718956762613,-500.0,0.00044109,120]
[330038244,1718956762647,-547.56,0.00044109,120]
[330038245,1718956762680,-500.0,0.00044109,120]
[330038246,1718956762712,-598.88,0.00044109,120]
[330038247,1718956762758,-500.0,0.00044109,120]
[330038248,1718956762793,-1091.37,0.00044109,120]
[330038249,1718956762827,-608.99,0.00044109,120]
[330038250,1718956762868,-503.01,0.00044109,120]
[330038251,1718956762904,-500.0,0.00044109,120]
[330038252,1718956762944,-535.03,0.00044109,120]
[330038253,1718956762981,-751.31,0.00044109,120]
[330038254,1718956763017,-500.0,0.00044109,120]
[330038255,1718956763052,-500.0,0.00044109,120]
[330038256,1718956763088,-523.08,0.00044109,120]
[330038257,1718956763124,-1029.71,0.00044109,120]
[330038258,1718956763159,-500.0,0.00044109,120]
[330038259,1718956763194,-521.08,0.00044109,120]
[330038260,1718956763228,-500.0,0.00044109,120]
[330038261,1718956763266,-796.24,0.00044109,120]
[330038262,1718956763305,-577.45,0.00044109,120]
[330038263,1718956763342,-500.0,0.00044109,120]
[330038264,1718956763377,-631.09,0.00044109,120]
[330038265,1718956763415,-813.4,0.00044109,120]
[330038266,1718956763450,-798.17,0.00044109,120]
[330038267,1718956763485,-947.26,0.00044109,120]
[330038268,1718956763519,-664.08,0.00044109,120]